Cogmind - Beta 16 @@@ ROGUE MODE // 2025.11.14 @ 23:32:58 Player: Terminus Result: Destroyed by D-53 Grenadier with Mini Grenade Launcher Performance ------------- Evolutions (0) 0 Regions Visited (2) 400 Robots Destroyed (27) 135 Value Destroyed (731) 731 Prototype IDs (3) 60 Alien Tech Used (0) 0 Bonus (0) 0 TOTAL SCORE: 1326 Bonus ------- None Cogmind --------- Core Integrity 0/250 Matter 260/300 Energy 76/100 System Corruption 4% Temperature Cool (0) Movement Treading (480) Ox4 Location -10/Mines Parts ------- > --- POWER (1) -------- (None) > --- PROPULSION (2) --- Light Treads > --- UTILITY (2) ------ Cooling System Huge Storage Unit > --- WEAPON (2) ------- Heavy Assault Rifle > --- INVENTORY (25) --- Ion Engine Ion Engine Light Treads Wheel Compact Wheel Cooling System Cooling System Cooling System Huge Storage Unit High-capacity Matter Pod (108) Hacking Suite Splice Drone Bay (6/6) Small Laser Small Laser Small Laser Small Laser Light Assault Rifle Light Assault Rifle Light Assault Rifle Heavy Assault Rifle Heavy Assault Rifle Mining Claw Peak State ------------ > --- POWER ------------ Ion Engine > --- PROPULSION ------- Light Treads Light Treads > --- UTILITY ---------- Huge Storage Unit Splice Drone Bay > --- WEAPON ----------- Medium Laser Light Assault Rifle > --- INVENTORY -------- Ion Engine Ion Engine Light Treads Wheel Compact Wheel Cooling System Cooling System Cooling System Cooling System Huge Storage Unit High-capacity Matter Pod Hacking Suite Small Laser Small Laser Small Laser Small Laser Light Assault Rifle Light Assault Rifle Heavy Assault Rifle Heavy Assault Rifle Heavy Assault Rifle Heavy Assault Rifle Mining Claw [Rating: 16] Favorites ----------- Power Ion Engine Engine Ion Engine Propulsion Light Treads Treads Light Treads Utility Heat Sink Device Heat Sink Storage High-capacity Storage Unit Weapon Medium Laser Energy Gun Medium Laser Ballistic Gun Light Assault Rifle Build | -11 -10 -10 ------- Run | Yrd Mat Min Slots Evolved . | . . . Power . | . . . Propulsion . | . . . Utility . | . . . Weapon . | . . . Parts Attached 21 | 6 12 3 Power 2 | 1 1 . Engine 2 | 1 1 . Core . | . . . Reactor . | . . . Propulsion 4 | 2 2 . Treads 4 | 2 2 . Leg . | . . . Wheel . | . . . Hover . | . . . Flight . | . . . Utility 7 | 1 5 1 Device 4 | . 3 1 Storage 3 | 1 2 . Processor . | . . . Hackware . | . . . Protection . | . . . Artifact . | . . . Weapon 8 | 2 4 2 Energy Gun 5 | 2 3 . Energy Cannon . | . . . Ballistic Gun 3 | . 1 2 Ballistic Cannon . | . . . Launcher . | . . . Special Weapon . | . . . Impact Weapon . | . . . Slashing Weapon . | . . . Piercing Weapon . | . . . Special Melee Weapon . | . . . Unidentified Prototypes 1 | . . 1 Parts Lost 9 | . 5 4 Power 1 | . . 1 Propulsion 3 | . 2 1 Utility 1 | . 1 . Weapon 4 | . 2 2 Highest Loss Streak 4 | . 1 4 To Critical Strikes . | . . . Average Backups 14 | 2 13 22 Power 1 | . 1 2 Propulsion 3 | 1 3 3 Utility 3 | . 2 6 Weapon 6 | . 5 10 Tool/Special . | . . . Unused Backups 23 | . 5 18 Power 2 | . . 2 Propulsion 3 | . . 3 Utility 11 | . 5 6 Weapon 7 | . . 7 Tool/Special . | . . . Average Slot Usage (%) 98 | . 98 99 Engine 13 | . 14 13 Treads 27 | . 27 28 Device 12 | . 12 14 Storage 14 | . 14 14 Energy Gun 17 | . 18 13 Ballistic Gun 10 | . 9 14 Peak Build Rating 16 | 6 11 16 Average Rating 8 | 4 8 11 On Entrance 5 | . 6 11 Avg Prop Armor Cover (%) 39 | 39 . . Naked Turns . | . . . Heaviest Build 92 | 13 90 92 Greatest Support 40 | 40 40 40 Greatest Overweight (x) 2 | 1 2 2 Average Overweight (x) 1 | . . 2 Largest Inventory Capacity 25 | 8 25 25 Average Capacity 19 | 7 19 25 Most Carried 25 | 4 25 23 Average Carried 14 | 2 13 22 Final Capacity 25 | 8 25 25 Final Carried 22 | 4 22 22 Class Distribution -------------------- 88% | Mutant 11% | Scavenger-Mutant Dominant Class ---------------- Mutant | -10/Materials Mutant | -10/Mines Resources | -11 -10 -10 ----------- Run | Yrd Mat Min Matter Collected 710 | 185 475 50 Remotely . | . . . Salvage Created 1033 | . 931 102 Parts 60 | . 55 5 Haulers Intercepted 2 | . 2 . Recyclers Shooed 2 | . 2 . Parts Field Recycled . | . . . Retrieved Matter . | . . . Parts Self-Destructed . | . . . Prevented . | . . . Parts Restored . | . . . Kills | -11 -10 -10 ------- Run | Yrd Mat Min Combat Hostiles Destroyed 20 | . 18 2 Guns 19 | . 17 2 Classes Destroyed 8 | . 7 1 Tunneler 1 | . 1 . Hauler 2 | . 2 . Recycler 1 | . 1 . Operator 1 | . 1 . Watcher 2 | . 2 . Swarmer 3 | . 3 . Grunt 16 | . 15 1 Demolisher 1 | . . 1 Best Kill Streak 4 | . 4 1 Combat Bots Only 3 | . 3 1 Max Kills in Single Turn 1 | . 1 1 Gunslinging . | . . . Exploded . | . . . Melee . | . . . Uniques/NPCs Destroyed . | . . . Combat | -11 -10 -10 -------- Run | Yrd Mat Min Hostile Shots Fired 127 | . 113 14 Missed 31 | . 29 2 Hits 96 | . 84 12 Projectile 96 | . 84 12 AOE 17 | . . 17 Critical Strikes 1 | . 1 . Damage Taken 1672 | . 1051 621 Core 261 | . 176 85 Absorbed by Shields . | . . . Regen/Repaired (Parts) 185 | . 185 . Core Remaining (%) 100 | 100 . . Volleys Fired 92 | . 84 8 Largest 2 | . 2 2 Hottest 90 | . 90 73 Shots Fired 188 | . 172 16 Gun 188 | . 172 16 Cannon . | . . . Launcher . | . . . Special . | . . . Kinetic 73 | . 60 13 Thermal 115 | . 112 3 Explosive . | . . . Electromagnetic . | . . . Robot Hit Streak 21 | . 21 9 Robot Miss Streak 4 | . 4 2 Penetration Max . | . . . Secondary Targets 2 | . 2 . Max Gunslinging Chain 1 | . 1 . Shots Hit Robots 125 | . 114 11 Core Hits 56 | . 50 6 Critical Kills . | . . . Critical Parts Destroyed . | . . . Critical Strikes 2 | . 2 . Burn 2 | . 2 . Melee Attacks . | . . . Impact . | . . . Slashing . | . . . Piercing . | . . . Sneak Attacks . | . . . Combat Hostiles . | . . . Follow-up Attacks . | . . . Damage Inflicted 1439 | 3 1266 170 Guns 1395 | . 1225 170 Cannons . | . . . Explosions . | . . . Melee . | . . . Ramming 44 | 3 41 . Kinetic 474 | . 330 144 Thermal 921 | . 895 26 Explosive . | . . . Electromagnetic . | . . . Impact . | . . . Slashing . | . . . Piercing . | . . . Highest Corruption 4 | . 4 4 Average Corruption 3 | . 3 4 Corruption Purged . | . . . Corruption Blocked . | . . . Effects 37 | . 24 13 Message Errors 10 | . 6 4 Matter Fused 7 | . 4 3 Heat Flow Errors 2 | . 2 . Energy Discharges 5 | . 3 2 Data Loss (minor) 5 | . 3 2 Data Loss (major) 2 | . 1 1 Misfires 4 | . 4 . Alerts 2 | . 1 1 Overload Shots . | . . . Overflow Damage . | . . . Projectiles . | . . . Explosions . | . . . Melee . | . . . Knockbacks . | . . . Impact . | . . . Kinetic . | . . . Secondary . | . . . Self-Inflicted Damage . | . . . Shots . | . . . Rammed 6 | 1 5 . Targets Rammed 7 | 1 6 . Kicked . | . . . Crushed 1 | . 1 . Highest Temperature 308 | . 308 . Average Temperature 56 | . 56 . Received Heat Transfer 543 | . 543 . Siege Activations . | . . . Martial Activations . | . . . Shielding Activations . | . . . Robots Disrupted . | . . . Combat Hostiles . | . . . Robots Corrupted . | . . . Combat Hostiles . | . . . Parts Fried . | . . . Impact Corruptions . | . . . Robots Melted 1 | . 1 . Combat Hostiles 1 | . 1 . Parts Melted 6 | . 5 1 Heat Transferred 2566 | . 2492 74 Parts Sabotaged . | . . . Parts Stolen . | . . . Parts Stripped . | . . . Power Chain Reactions . | . . . Alert | -11 -10 -10 ------- Run | Yrd Mat Min Maximum Alert Level . | . . . Low Security (%) 100 | 100 100 100 Level 1 . | . . . Level 2 . | . . . Level 3 . | . . . Level 4 . | . . . Level 5 . | . . . High Security . | . . . Max Security . | . . . Peak Influence 109 | . 109 36 Initial . | . . . Average 24 | . 30 3 Influence Increases 625 | . 559 66 Destroy 0b10 Robot/C 400 | . 360 40 Destroy 0b10 Robot/NC 35 | . 35 . Destroy Leader 98 | . 78 20 Successful Hack 31 | . 25 6 Select Force Hacks 30 | . 30 . Destroy Structure 1 | . 1 . Lose Combat Pursuer 30 | . 30 . Influence Decreases 623 | . 559 64 Time Decay 484 | . 440 44 Lost Part 54 | . 34 20 Purge Threat 85 | . 85 . Squads Dispatched 4 | . 3 1 Investigation 3 | . 2 1 Extermination . | . . . Reinforcement 1 | . 1 . Assault . | . . . Garrison . | . . . Intercept . | . . . Searches Triggered . | . . . Construction Impeded . | . . . Haulers Reinforced . | . . . Active Scanning Responses . | . . . Cargo Convoy Interrupts . | . . . Stealth | -11 -10 -10 --------- Run | Yrd Mat Min Distress Signals . | . . . Communications Jammed . | . . . Distress Signals . | . . . Times Spotted 29 | . 27 2 Peak Tracking Total 3 | . 3 2 Tactical Retreats 1 | . 1 . Traps | -11 -10 -10 ------- Run | Yrd Mat Min Traps Triggered 2 | . 2 . Indirectly . | . . . Trap Hack Attempts . | . . . Triggered . | . . . Disarmed . | . . . Reprogrammed . | . . . Reused . | . . . Traps Extracted . | . . . Installed . | . . . Triggered . | . . . Machines | -11 -10 -10 ---------- Run | Yrd Mat Min Machines Disabled . | . . . Max in Single Turn . | . . . Machines Repaired . | . . . Machines Dismantled . | . . . Machines Sabotaged . | . . . Overloaded Fab Kills . | . . . Hacking | -11 -10 -10 --------- Run | Yrd Mat Min Machines Accessed 11 | . 9 2 Terminals 8 | . 7 1 Fabricators . | . . . Repair Stations 1 | . 1 . Recycling Units 1 | . 1 . Scanalyzers . | . . . Garrison Access . | . . . Total Hacks 31 | . 24 7 Successful 19 | . 15 4 Failed 11 | . 8 3 Catastrophic 1 | . 1 . Database Lockouts 1 | . 1 . Manual 25 | . 19 6 Terminals 26 | . 20 6 Fabricators . | . . . Repair Stations 3 | . 3 . Recycling Units 1 | . 1 . Scanalyzers . | . . . Garrison Access . | . . . Terminal Hacks 7 | . 3 4 Part Schematic 1 | . 1 . Robot Analysis 1 | . . 1 Prototype ID Bank 1 | . 1 . Open Door 1 | . . 1 Alert Level 1 | . . 1 Unreport Threat 1 | . 1 . Zone Layout 1 | . . 1 Fabricator Hacks . | . . . Repair Station Hacks 2 | . 2 . Scan Component 1 | . 1 . Repair 1 | . 1 . Recycling Unit Hacks . | . . . Scanalyzer . | . . . Garrison Access Hacks . | . . . Unauthorized Hacks 10 | . 10 . Terminals 8 | . 8 . Track 1 | . 1 . Botnet 4 | . 4 . Skim 3 | . 3 . Fabricators . | . . . Repair Stations 1 | . 1 . Patch 1 | . 1 . Recycling Units 1 | . 1 . Tunnel 1 | . 1 . Scanalyzers . | . . . Garrison Access . | . . . Data Cores Recovered . | . . . Used . | . . . Hacking Detections 9 | . 8 1 Full Trace Events 1 | . . 1 Feedback Events . | . . . Feedback Blocked . | . . . Robot Schematics Acquired . | . . . Robots Built . | . . . Authchips . | . . . Time . | . . . Total Robot Build Rating . | . . . Part Schematics Acquired 1 | . 1 . Parts Built . | . . . Authchips . | . . . Time . | . . . Total Part Build Rating . | . . . Part Studies Acquired . | . . . Parts Repaired 1 | . 1 . Time 26 | . 26 . Parts Recycled . | . . . Recycled Matter . | . . . Retrieved Matter . | . . . Retrieved Components . | . . . Parts Scanalyzed . | . . . Part Schematics Acquired . | . . . Parts Damaged . | . . . Bothacking | -11 -10 -10 ------------ Run | Yrd Mat Min Used RIF Installer . | . . . Robots Hacked . | . . . Non-combat . | . . . Combat . | . . . Robot Hacks Applied . | . . . Relay Couplers Released . | . . . Fabnet Peak Effective % . | . . . Robots Rewired . | . . . Allies Hacked . | . . . Hacks Repelled . | . . . Allies | -11 -10 -10 -------- Run | Yrd Mat Min Total Allies 3 | . . 3 Largest Group 3 | . . 3 Highest-Rated Group 40 | . . 40 Highest-Rated Ally 16 | . . 16 Total Orders 2 | . . 2 RETURN 2 | . . 2 Ally Attacks 3 | . . 3 Total Damage 43 | . . 43 Kills . | . . . Allies Corrupted . | . . . Allies Melted . | . . . Intel | -11 -10 -10 ------- Run | Yrd Mat Min Active Infowar (turns) . | . . . Robot Analysis Total 1 | . . 1 Derelict Logs Recovered . | . . . Drone Launches 2 | . . 2 Drone Recoveries 2 | . . 2 Exploration | -11 -10 -10 ------------- Run | Yrd Mat Min Turns Passed 2655 | 84 2071 500 Spaces Moved 881 | 52 684 145 Core 22 | 22 . . Treads 859 | 30 684 145 Legs . | . . . Wheels . | . . . Hover . | . . . Flight . | . . . Fastest Speed 50 | 50 160 320 Average Speed 244 | 125 237 320 Slowest Speed 320 | 160 320 320 Overloaded Moves . | . . . Propulsion Burnouts . | . . . Robots Hopped . | . . . Potential Cave-ins . | . . . Cave-ins Triggered . | . . . Exploration Rate (%) 46 | 5 98 36 Regions Visited 2 Branch Regions 1 Pre-discovered Areas 1 | . 1 . Known Exits Taken . | . . . Unknown Exits Taken 2 | 1 1 . Scrap Searched . | . . . Spaces Dug . | . . . Terrain Destroyed . | . . . Melee . | . . . Projectile . | . . . AOE . | . . . Terrain Rammed . | . . . Walls Destroyed . | . . . Machines Disabled . | . . . Actions | -11 -10 -10 --------- Run | Yrd Mat Min Total 1201 | 67 969 165 Wait 157 | 5 145 7 Move 879 | 51 683 145 Hop . | . . . Pick Up 32 | 4 27 1 Fast Attach 9 | 6 3 . Attach 5 | . 4 1 Detach . | . . . Swap 11 | . 8 3 Drop 9 | . 9 . Fire 92 | . 84 8 Melee . | . . . Ram . | . . . Kick . | . . . Crush 7 | 1 6 . Escape Stasis . | . . . Rewire . | . . . Trap . | . . . Miscellaneous . | . . . Route ------- -11/Scrapyard -10/Materials (discovered 4 exits: [*Mat x3] / *Min) -10/Mines (discovered 1 exit: [*Mat]) History --------- Turn | Location | Event 7 | -11/Scrapyard | Discovered new exit (range 16) 85 | -11/Scrapyard | Entered Materials 311 | -10/Materials | Build established: Mutant 523 | -10/Materials | Discovered new exit (range 7) 914 | -10/Materials | Core integrity fell below 50% 1064 | -10/Materials | Discovered new exit (range 13) 1081 | -10/Materials | Central database locked down 1158 | -10/Materials | Repaired Lgt. Treads 1500 | -10/Materials | Discovered new exit (range 10) 1586 | -10/Materials | Build established: Scavenger-Mutant 1888 | -10/Materials | Discovered new exit (range 3) 1889 | -10/Materials | Build established: Mutant 2156 | -10/Materials | Entered Mines 2289 | -10/Mines | Found the Drone Emporium 2304 | -10/Mines | Found Prototype Device 2305 | -10/Mines | Identified Splice Drone Bay 2378 | -10/Mines | Discovered new exit (range 6) 2597 | -10/Mines | Assembled infested the area 2602 | -10/Mines | Assisted by a Guerilla fighting off Assembled 2605 | -10/Mines | Assisted by bots powering up and referring to "LRC-V3" 2641 | -10/Mines | Core integrity fell below 20% 2656 | -10/Mines | Destroyed by D-53 Grenadier with Mini Grenade Launcher Last Messages --------------- 02634_ D-53 Grenadier unfolds itself. 02634_ Mercenary 1a destroyed. 02634_ Trooper 1a destroyed. 02635_ The unstable cave ceiling collapses. 02635_ K-01 Serf collects debris. 02635_ Trooper 1b destroyed. 02638_ Ion Engine destroyed. 02638_ K-01 Serf collects debris. 02639_ The unstable cave ceiling collapses. 02641_ Med. Laser destroyed. 02641_ K-01 Serf collects debris. 02644_ System corrupted: Energy discharge (-17). 02645_ K-01 Serf collects debris. 02646_ Launcher Guidance Computer melted. 02646_ D-53 Grenadier destroyed. 02650_ K-01 Serf collects debris. 02653_ The unstable cave ceiling collapses. 02654_ Lgt. Treads destroyed. 02655_ K-01 Serf collects debris. 02656_ Hvy. Assault Rifle destroyed. Map ----- +----------------------------------------------------+ | | | | | | | | | | | | | | | | | | | | | | | | | | | | | | | | | | | ?????????????????????????????????????????????????? | | ?????????????????????????????????????????????????? | | ???????????????????????#######???????????????????? | | ?????????????????????### ##???????????????????? | | ?????????????????????# #####???????????????? | | ?????????????????##### # #???????????????? | | ????????????????## # ###?????????????? | | ????????????????# ##????????????? | | ???????????????## @ ##???????????? | | ??????????????## %= #???????????? | | ??????????????# d #???????????? | | ??????????????# %* % #??????????? | | ??????????????# # k $ #??????? | | ??????????????# # ##?## ## #??????? | | ??????????????# ##?###????# ##?????????? | | ??????????????## ##??????????# ##??????????? | | ???????????????## ##????????????###???????????? | | ????????????????## #???????????????????????????? | | ?????????????????## #???????????????????????????? | | ?????????????????## #???????????????????????????? | | ????????????????## ######??????????????????????? | | ########??####### #??????????????????????? | | #??# ### #??????????????????????? | | #??# #??????????????????????????? | | """ #??## ##??????????????????????????? | | """ #???# #########???????????????????????????? | | """ #???# #???????????????????????????????????? | | #???# #???????????????????????????????????? | | """ #???# #???????????????????????????????????? | | """ #???# #???????????????????????????????????? | | """ #???# #???????????????????????????????????? | | #???# #???????????????????????????????????? | | #???# #???????????????????????????????????? | +----------------------------------------------------+ Best States ------------- Heat Dissipation 47 Energy Generation 10 Energy Capacity 250 Matter Stores 300 Matter Capacity 300 Sight Range 16 Terrain Scan Density 10 Evasion (%) 50 Recoil Reduction 2 Item Schematics ----------------- Huge Storage Unit | -10/Materials | Hacked Robot Schematics ------------------ None Fabricated ------------ Nothing Repaired ---------- Lgt. Treads | 5% | -10/Materials Studied --------- None Alien Tech Used ----------------- None Achievements -------------- None Challenges ------------ None Game ------ Seed ArmorInsulationCycler Manual? 0 Play Time 00:11:37 Cumulative 2216.1 hours Start 2025.11.14 @ 23:23:16 End 2025.11.14 @ 23:32:58 Sessions 1 Manual Loads 0 Difficulty Rogue Special Mode None Game No. 743 Rogue 743 Adventurer 0 Explorer 0 Win Type - Total 167 Types 31/19/65/7/1/2/40/1/1/0 Lore% 97 Gallery% 94 Achievement% 65 Wizard Run 0 Options --------- Layout 0 ASCII 0 Keyboard 0 Movement Numpad Keybinds 0 Fullscreen 2 Font 24/Smallcaps Map View 76x50 Zoom Use 0% Tactical HUD 1 Map Filters NONE Filters NONE Steam 1 RUN: d08dd43e-193b-4c91-ad4f-48727c386493